fUST/lending_fUST_20250206
["ID","MTS","AMOUNT","RATE_DAILY","PERIOD"]
[351817512,1738799450811,-500.0,0.00013835,2]
[351817513,1738799450821,-500.0,0.00013835,2]
[351817514,1738799450831,-500.0,0.00013835,2]
[351817515,1738799450840,-10224.73,0.00013835,2]
[351817516,1738799450850,-500.0,0.00013835,2]
[351817517,1738799450859,-2254.69,0.00013835,2]
[351817518,1738799450869,-576.98,0.00013835,2]
[351817519,1738799450879,-151.0,0.00013835,2]
[351817520,1738799450888,-500.0,0.00013835,2]
[351817521,1738799450897,-151.0,0.00013835,2]
[351817522,1738799450907,-543.99,0.00013835,2]
[351817523,1738799450916,-151.0,0.00013835,2]
[351817524,1738799450926,-542.95,0.00013835,2]
[351817525,1738799450936,-500.0,0.00013835,2]
[351817526,1738799450945,-151.0,0.00013835,2]
[351817527,1738799450955,-90073.3,0.00013835,2]
[351817528,1738799450964,-500.0,0.00013835,2]
[351817529,1738799450973,-500.0,0.00013835,2]
[351817530,1738799450988,-151.0,0.00013835,2]
[351817531,1738799450998,-503.48,0.00013835,2]
[351817532,1738799451008,-500.0,0.00013835,2]
[351817533,1738799451017,-500.0,0.00013835,2]
[351817534,1738799451027,-350.33110555,0.00013835,2]
[351817535,1738799451037,-500.0,0.00013835,2]
[351817536,1738799451048,-154.119608,0.00013835,2]
[351817537,1738799451058,-500.0,0.00013835,2]
[351817538,1738799451068,-4125.25,0.00013835,2]
[351817539,1738799451077,-500.0,0.00013835,2]
[351817540,1738799451087,-500.0,0.00013835,2]
[351817541,1738799451097,-530.65,0.00013835,2]
[351817542,1738799451107,-500.0,0.00013835,2]
[351817543,1738799451116,-500.0,0.00013835,2]
[351817544,1738799451125,-500.0,0.00013835,2]
[351817545,1738799451135,-500.0,0.00013835,2]
[351817546,1738799451144,-2219.08,0.00013835,2]
[351817547,1738799451153,-500.0,0.00013835,2]
[351817548,1738799451164,-2668.67,0.00013835,2]
[351817549,1738799451174,-29793.1,0.00013835,2]
[351817550,1738799451185,-500.0,0.00013835,2]
[351817551,1738799451196,-533.58,0.00013835,2]
[351817552,1738799451206,-151.0,0.00013835,2]
[351817553,1738799451217,-1442.83,0.00013835,2]
[351817554,1738799451227,-500.0,0.00013835,2]
[351817555,1738799451237,-6207.06,0.00013835,2]
[351817556,1738799451247,-925.36,0.00013835,2]
[351817557,1738799451258,-561.31,0.00013835,2]
[351817558,1738799451268,-607.36,0.00013835,2]
[351817559,1738799451278,-2555.32,0.00013835,2]
[351817560,1738799451299,-4235.83,0.00013835,2]
[351817561,1738799451318,-3224.33,0.00013835,2]
[351817562,1738799451332,-500.0,0.00013835,2]
[351817563,1738799451351,-500.0,0.00013835,2]
[351817564,1738799451370,-151.0,0.00013835,2]
[351817565,1738799451387,-500.0,0.00013835,2]
[351817566,1738799451405,-2402.16,0.00013835,2]
[351817567,1738799451420,-500.0,0.00013835,2]
[351817568,1738799451436,-500.0,0.00013835,2]
[351817569,1738799451453,-500.0,0.00013835,2]
[351817570,1738799451467,-500.0,0.00013835,2]
[351817571,1738799451480,-1626.15,0.00013835,2]
[351817572,1738799451496,-2543.19,0.00013835,2]
[351817573,1738799451512,-500.0,0.00013835,2]
[351817574,1738799451528,-1078.46,0.00013835,2]
[351817575,1738799451545,-500.0,0.00013835,2]
[351817576,1738799451558,-151.0,0.00013835,2]
[351817577,1738799451569,-803.45,0.00013835,2]
[351817578,1738799451585,-500.0,0.00013835,2]
[351817579,1738799451600,-2352.78,0.00013835,2]
[351817580,1738799451612,-162.84651182,0.00013835,2]
[351817581,1738799451627,-151.0,0.00013835,2]
[351817582,1738799451639,-618.79,0.00013835,2]
[351817583,1738799451651,-793.28,0.00013835,2]
[351817584,1738799451664,-660.26,0.00013835,2]
[351817585,1738799451679,-3432.9,0.00013835,2]
[351817586,1738799451694,-151.0,0.00013835,2]
[351817587,1738799451708,-500.0,0.00013835,2]
[351817588,1738799451721,-500.0,0.00013835,2]
[351817589,1738799451736,-151.0,0.00013835,2]
[351817590,1738799451750,-500.0,0.00013835,2]
[351817591,1738799451763,-528.88,0.00013835,2]
[351817592,1738799451776,-522.25,0.00013835,2]
[351817593,1738799451789,-500.0,0.00013835,2]
[351817594,1738799451809,-500.0,0.00013835,2]
[351817595,1738799451822,-500.0,0.00013835,2]
[351817596,1738799451835,-832.56,0.00013835,2]
[351817597,1738799451848,-1102.11,0.00013835,2]
[351817598,1738799451860,-500.0,0.00013835,2]
[351817599,1738799451873,-1291.26,0.00013835,2]
[351817600,1738799451886,-500.0,0.00013835,2]
[351817601,1738799451899,-907.13,0.00013835,2]
[351817602,1738799451912,-500.0,0.00013835,2]
[351817603,1738799451934,-500.0,0.00013835,2]
[351817604,1738799451947,-7056.17,0.00013835,2]
[351817605,1738799451959,-621.19,0.00013835,2]
[351817606,1738799451972,-524.36,0.00013835,2]
[351817607,1738799451984,-151.0,0.00013835,2]
[351817608,1738799451998,-500.0,0.00013835,2]
[351817609,1738799452011,-500.0,0.00013835,2]
[351817610,1738799452024,-500.0,0.00013835,2]
[351817611,1738799452038,-500.0,0.00013835,2]
[351817612,1738799452051,-504.39,0.00013835,2]
[351817613,1738799452065,-500.0,0.00013835,2]
[351817614,1738799452079,-500.0,0.00013835,2]
[351817615,1738799452092,-500.0,0.00013835,2]
[351817616,1738799452107,-500.0,0.00013835,2]
[351817617,1738799452120,-531.33,0.00013835,2]
[351817618,1738799452134,-151.0,0.00013835,2]
[351817619,1738799452147,-472.84017149,0.00013873,2]
[351817620,1738799452161,-500.83311623,0.00013873,2]
[351817621,1738799452174,-500.0,0.00013873,2]
[351817622,1738799452187,-500.0,0.00013873,2]
[351817623,1738799452200,-500.0,0.00013873,2]
[351817624,1738799452213,-4968.20641107,0.000139,2]
[351817625,1738799452226,-151.0,0.00013971,2]
[351817626,1738799452238,-151.0,0.00013971,2]
[351817627,1738799452251,-151.0,0.00013971,2]
[351817628,1738799452265,-160.753284,0.00013971,2]
[351817629,1738799452280,-160.753284,0.00013971,2]
[351817630,1738799452293,-287.124491,0.00013971,2]
[351817631,1738799452306,-151.0,0.00013971,2]
[351817632,1738799452320,-151.0,0.00013972,2]
[351817633,1738799452333,-540.54,0.00013972,2]
[351817634,1738799452346,-500.0,0.00013972,2]
[351817635,1738799452363,-500.0,0.00013972,2]
[351817636,1738799452376,-500.0,0.00013972,2]
[351817637,1738799452390,-500.0,0.00013972,2]
[351817638,1738799452402,-500.0,0.00013972,2]
[351817639,1738799452415,-500.0,0.00013972,2]
[351817640,1738799452428,-500.0,0.00013972,2]
[351817641,1738799452442,-551.65,0.00013972,2]
[351817642,1738799452456,-500.0,0.00013972,2]
[351817643,1738799452468,-500.0,0.00013972,2]
[351817644,1738799452481,-500.0,0.00013972,2]
[351817645,1738799452493,-500.0,0.00013972,2]
[351817646,1738799452506,-152.675225,0.00013972,2]
[351817647,1738799452518,-500.0,0.00013972,2]
[351817648,1738799452527,-500.0,0.00013972,2]
[351817649,1738799452536,-500.0,0.00013972,2]
[351817650,1738799452545,-512.38,0.00013972,2]
[351817651,1738799452554,-500.0,0.00013972,2]
[351817652,1738799452564,-500.0,0.00013972,2]
[351817653,1738799452573,-500.0,0.00013972,2]
[351817654,1738799452583,-1290.78,0.00013972,2]
[351817655,1738799452592,-247.035217,0.00013972,2]
[351817656,1738799452602,-660.02,0.00013972,2]
[351817657,1738799452611,-637.59028457,0.00013972,2]
[351817658,1738799452823,-500.0,0.00013972,2]
[351817659,1738799452847,-647.87,0.00013972,2]
[351817660,1738799452857,-500.0,0.00013972,2]
[351817661,1738799452867,-500.0,0.00013972,2]
[351817662,1738799452876,-500.0,0.00013972,2]
[351817663,1738799452885,-951.76,0.00013972,2]
[351817664,1738799452894,-500.0,0.00013972,2]
[351817665,1738799452904,-500.0,0.00013972,2]
[351817666,1738799452914,-500.0,0.00013972,2]
[351817667,1738799452923,-500.0,0.00013972,2]
[351817668,1738799452933,-500.0,0.00013972,2]
[351817669,1738799452942,-527.87,0.00013972,2]
[351817670,1738799452952,-500.0,0.00013972,2]
[351817671,1738799452961,-500.0,0.00013972,2]
[351817672,1738799452970,-658.38,0.00013972,2]
[351817673,1738799452980,-899.57,0.00013972,2]
[351817674,1738799452989,-587.49,0.00013972,2]
[351817675,1738799452999,-151.0,0.00013972,2]
[351817676,1738799453008,-500.0,0.00013972,2]
[351817677,1738799453017,-151.0,0.00013972,2]
[351817678,1738799453026,-503.29,0.00013972,2]
[351817679,1738799453035,-634.75,0.00013972,2]
[351817680,1738799453045,-536.31,0.00013972,2]
[351817681,1738799453054,-709.24,0.00013972,2]
[351817682,1738799453063,-740.19,0.00013972,2]
[351817683,1738799453073,-500.0,0.00013972,2]
[351817684,1738799453082,-500.0,0.00013972,2]
[351817685,1738799453092,-500.0,0.00013972,2]
[351817686,1738799453101,-581.39,0.00013972,2]
[351817687,1738799453111,-500.0,0.00013972,2]
[351817688,1738799453120,-1238.77,0.00013972,2]
[351817689,1738799453129,-1542.65,0.00013972,2]
[351817690,1738799453138,-500.0,0.00013972,2]
[351817691,1738799453147,-500.0,0.00013972,2]
[351817692,1738799453157,-1000.0,0.00013972,2]
[351817693,1738799453166,-523.04,0.00013972,2]
[351817694,1738799453175,-500.0,0.00013972,2]
[351817695,1738799453184,-500.0,0.00013972,2]
[351817696,1738799453194,-500.0,0.00013972,2]
[351817697,1738799453204,-151.0,0.00013972,2]
[351817698,1738799453213,-500.0,0.00013972,2]
[351817699,1738799453230,-521.62,0.00013972,2]
[351817700,1738799453240,-500.0,0.00013972,2]
[351817701,1738799453250,-519.32,0.00013972,2]
[351817702,1738799453261,-500.0,0.00013972,2]
[351817703,1738799453271,-547.12,0.00013972,2]
[351817704,1738799453280,-1312.89,0.00013972,2]
[351817705,1738799453290,-1003.19,0.00013972,2]
[351817706,1738799453299,-595.88,0.00013972,2]
[351817707,1738799453309,-500.0,0.00013972,2]
[351817708,1738799453319,-500.0,0.00013972,2]
[351817709,1738799453330,-779.68,0.00013972,2]
[351817710,1738799453341,-151.0,0.00013972,2]
[351817711,1738799453352,-1057.63,0.00013972,2]
[351817712,1738799453368,-500.0,0.00013972,2]
[351817713,1738799453380,-151.0,0.00013972,2]
[351817714,1738799453390,-500.0,0.00013972,2]
[351817715,1738799453401,-1109.39,0.00013972,2]
[351817716,1738799453411,-500.0,0.00013972,2]
[351817717,1738799453422,-500.0,0.00013972,2]
[351817718,1738799453434,-676.12,0.00013972,2]
[351817719,1738799453443,-500.0,0.00013972,2]
[351817720,1738799453453,-500.0,0.00013972,2]
[351817721,1738799453463,-885.54,0.00013972,2]
[351817722,1738799453474,-500.0,0.00013972,2]
[351817723,1738799453482,-555.01,0.00013972,2]
[351817724,1738799453493,-174.685209,0.00013972,2]
[351817725,1738799453502,-928.77,0.00013972,2]
[351817726,1738799453511,-151.0,0.00013972,2]
[351817727,1738799453520,-9.5707147,0.00013972,2]
[351817728,1738799453876,-500.0,0.00013698,2]
[351817729,1738799453886,-132.77802642,0.00013698,2]
[351817730,1738799610792,160.0,0.00019134,120]
[351817731,1738799790762,160.0,0.00018593,120]
[351817732,1738799971309,160.0,0.00018076,120]
[351817733,1738800032392,160.0,0.00017728,120]
[351817785,1738800151327,160.0,0.00017469,120]
[351817787,1738800332642,160.0,0.00017744,120]
[351817789,1738800451297,160.0,0.00017466,120]
[351817831,1738800635708,-494.75395182,0.00010959,2]
[351817833,1738800635718,-532.8,0.00010959,2]
[351817835,1738800635728,-193.74376504,0.00013598,2]
[351817837,1738800635738,-158.622,0.0001366,2]
[351817839,1738800635748,-300.0,0.00013696,2]
[351817841,1738800635762,-500.0,0.00013697,2]
[351817843,1738800635771,-500.0,0.00013697,2]
[351817845,1738800635780,-500.0,0.00013697,2]
[351817847,1738800635790,-270.21161337,0.00013697,2]
[351817849,1738800635801,-438.43465434,0.00013697,2]
[351817851,1738800635810,-270.94999317,0.00013698,2]
[351817854,1738800635827,-301.51098945,0.00013698,2]
[351817856,1738800635838,-500.0,0.00013698,2]
[351817858,1738800635849,-500.0,0.00013698,2]
[351817860,1738800635859,-500.0,0.00013698,2]
[351817861,1738800635869,-500.0,0.00013698,2]
[351817863,1738800635881,-502.66595979,0.00013698,2]
[351817864,1738800635891,-187.85660596,0.00013698,2]
[351817865,1738800635911,-312.51225661,0.00013698,2]
[351817866,1738800635921,-453.24663508,0.00013698,2]
[351817867,1738800635941,-505.12203579,0.00013698,2]
[351817868,1738800635953,-169.92777612,0.00013698,2]
[351817869,1738800635967,-330.07222388,0.00013698,2]
[351817870,1738800635976,-500.0,0.00013698,2]
[351817871,1738800635986,-500.0,0.00013698,2]
[351817872,1738800635995,-500.0,0.00013698,2]
[351817873,1738800636005,-310.52777617,0.00013698,2]
[351817933,1738800638391,-189.47222383,0.00013698,2]
[351817935,1738800638401,-500.0,0.00013698,2]
[351817937,1738800638412,-899.57,0.00013698,2]
[351817939,1738800638422,-500.0,0.00013698,2]
[351817942,1738800638433,-500.0,0.00013698,2]
[351817944,1738800638443,-517.53111765,0.00013698,2]
[351817945,1738800638453,-658.38,0.00013698,2]
[351817947,1738800638462,-634.75,0.00013698,2]
[351817950,1738800638472,-500.0,0.00013698,2]
[351817952,1738800638482,-500.0,0.00013698,2]
[351817954,1738800638491,-500.0,0.00013698,2]
[351817956,1738800638501,-587.49,0.00013698,2]
[351817958,1738800638510,-500.0,0.00013698,2]
[351817959,1738800638520,-500.0,0.00013698,2]
[351817961,1738800638529,-503.29,0.00013698,2]
[351817963,1738800638539,-226.42954886,0.00013698,2]
[351817966,1738800638548,-500.0,0.00013698,2]
[351817967,1738800638558,-536.31,0.00013698,2]
[351817969,1738800638568,-500.0,0.00013698,2]
[351817971,1738800638577,-500.0,0.00013698,2]
[351817973,1738800638586,-500.0,0.00013698,2]
[351817975,1738800638595,-740.19,0.00013698,2]
[351817977,1738800638605,-500.0,0.00013698,2]
[351817979,1738800638614,-500.0,0.00013698,2]
[351817981,1738800638623,-500.0,0.00013698,2]
[351817983,1738800638636,-500.0,0.00013698,2]
[351817985,1738800638645,-1238.77,0.00013698,2]
[351817987,1738800638654,-1000.0,0.00013698,2]
[351817989,1738800638664,-500.0,0.00013698,2]
[351817991,1738800638673,-500.0,0.00013698,2]
[351817993,1738800638682,-231.38472543,0.00013698,2]
[351817995,1738800638691,-501.84386738,0.00013698,2]
[351817997,1738800638701,-399.05238333,0.00013698,2]
[351817999,1738800638710,-581.39,0.00013698,2]
[351818001,1738800638720,-595.88,0.00013698,2]
[351818003,1738800638730,-1003.19,0.00013698,2]
[351818005,1738800638739,-500.0,0.00013698,2]
[351818007,1738800638749,-500.0,0.00013698,2]
[351818009,1738800638764,-500.0,0.00013698,2]
[351818011,1738800638774,-500.0,0.00013698,2]
[351818013,1738800638784,-502.61169903,0.00013698,2]
[351818015,1738800638794,-500.0,0.00013698,2]
[351818017,1738800638803,-726.75,0.00013698,2]
[351818019,1738800638812,-503.1668132,0.00013698,2]
[351818021,1738800638821,-501.56384328,0.00013698,2]
[351818023,1738800638833,-188.0,0.00013698,2]
[351818025,1738800638842,-500.0,0.00013698,2]
[351818027,1738800638851,-500.0,0.00013698,2]
[351818029,1738800638860,-500.0,0.00013698,2]
[351818031,1738800638869,-500.0,0.00013698,2]
[351818033,1738800638879,-500.0,0.00013698,2]
[351818035,1738800638888,-500.0,0.00013698,2]
[351818037,1738800638897,-500.0,0.00013698,2]
[351818039,1738800638906,-500.0,0.00013698,2]
[351818041,1738800638916,-500.0,0.00013698,2]
[351818043,1738800638925,-500.0,0.00013698,2]
[351818045,1738800638934,-502.08279943,0.00013698,2]
[351818047,1738800638944,-500.0,0.00013698,2]
[351818049,1738800638953,-306.79317507,0.00013698,2]
[351818052,1738800638971,-193.20682493,0.00013698,2]
[351818053,1738800638980,-154.07154573,0.00013698,2]
[351818056,1738800638992,-345.92845427,0.00013698,2]
[351818058,1738800639001,-500.0,0.00013698,2]
[351818060,1738800639011,-198.07942904,0.00013698,2]
[351818062,1738800639020,-500.0,0.00013698,2]
[351818064,1738800639030,-186.28280467,0.00013698,2]
[351818066,1738800639040,-500.0,0.00013698,2]
[351818068,1738800639049,-500.0,0.00013698,2]
[351818070,1738800639058,-500.0,0.00013698,2]
[351818072,1738800639068,-300.0,0.00013698,2]
[351818074,1738800639077,-500.0,0.00013698,2]
[351818076,1738800639086,-500.0,0.00013698,2]
[351818078,1738800639096,-500.0,0.00013698,2]
[351818080,1738800639106,-500.0,0.00013698,2]
[351818082,1738800639115,-500.0,0.00013698,2]
[351818084,1738800639124,-615.88,0.00013698,2]
[351818086,1738800639135,-500.0,0.00013698,2]
[351818088,1738800639145,-512.82,0.00013698,2]
[351818090,1738800639154,-505.74199132,0.00013698,2]
[351818092,1738800639163,-500.0,0.00013698,2]
[351818094,1738800639173,-500.0,0.00013698,2]
[351818096,1738800639182,-1181.43,0.00013698,2]
[351818098,1738800639192,-630.89,0.00013698,2]
[351818100,1738800639201,-500.0,0.00013698,2]
[351818102,1738800639211,-1000.0,0.00013698,2]
[351818104,1738800639221,-500.0,0.00013698,2]
[351818106,1738800639230,-843.43,0.00013698,2]
[351818109,1738800639243,-500.0,0.00013698,2]
[351818111,1738800639252,-500.0,0.00013698,2]
[351818113,1738800639262,-500.0,0.00013698,2]
[351818115,1738800639271,-500.0,0.00013698,2]
[351818117,1738800639280,-500.0,0.00013698,2]
[351818119,1738800639290,-707.62,0.00013698,2]
[351818121,1738800639299,-501.20315006,0.00013698,2]
[351818123,1738800639309,-500.0,0.00013698,2]
[351818125,1738800639319,-500.0,0.00013698,2]
[351818127,1738800639328,-500.0,0.00013698,2]
[351818129,1738800639338,-500.0,0.00013698,2]
[351818131,1738800639347,-500.0,0.00013698,2]
[351818133,1738800639356,-500.0,0.00013698,2]
[351818135,1738800639366,-503.09337898,0.00013698,2]
[351818137,1738800639377,-528.88,0.00013698,2]
[351818139,1738800639386,-500.0,0.00013698,2]
[351818141,1738800639395,-500.0,0.00013698,2]
[351818143,1738800639405,-547.56970323,0.00013698,2]
[351818145,1738800639414,-422.51255311,0.00013698,2]
[351818147,1738800639424,-500.0,0.00013698,2]
[351818149,1738800639435,-1320.14,0.00013698,2]
[351818151,1738800639444,-500.0,0.00013698,2]
[351818153,1738800639453,-500.0,0.00013698,2]
[351818155,1738800639462,-500.0,0.00013698,2]
[351818157,1738800639472,-561.55,0.00013698,2]
[351818159,1738800639482,-500.0,0.00013698,2]
[351818161,1738800639491,-509.89494852,0.00013698,2]
[351818163,1738800639501,-500.0,0.00013698,2]
[351818165,1738800639511,-384.74465981,0.00013698,2]
[351818167,1738800639520,-709.24,0.00013698,2]
[351818169,1738800639529,-500.0,0.00013698,2]
[351818171,1738800639540,-500.0,0.00013698,2]
[351818173,1738800639549,-500.0,0.00013698,2]
[351818175,1738800639559,-500.0,0.00013698,2]
[351818177,1738800639569,-531.33,0.00013698,2]
[351818179,1738800639578,-500.0,0.00013698,2]
[351818181,1738800639588,-500.0,0.00013698,2]
[351818183,1738800639599,-501.97482005,0.00013698,2]
[351818185,1738800639609,-1637.55,0.00013698,2]
[351818187,1738800639620,-500.0,0.00013698,2]
[351818189,1738800639632,-500.0,0.00013698,2]
[351818191,1738800639642,-519.32,0.00013698,2]
[351818193,1738800639651,-500.0,0.00013698,2]
[351818195,1738800639661,-500.0,0.00013698,2]
[351818198,1738800639679,-500.0,0.00013698,2]
[351818201,1738800639689,-500.0,0.00013698,2]
[351818204,1738800639700,-500.0,0.00013698,2]
[351818206,1738800639709,-500.0,0.00013698,2]
[351818208,1738800639718,-1542.65,0.00013698,2]
[351818211,1738800639728,-500.0,0.00013698,2]
[351818213,1738800639738,-500.0,0.00013698,2]
[351818215,1738800639748,-500.0,0.00013698,2]
[351818217,1738800639761,-500.0,0.00013698,2]
[351818219,1738800639770,-999.32,0.00013698,2]
[351818221,1738800639780,-500.0,0.00013698,2]
[351818223,1738800639789,-511.64698148,0.00013698,2]
[351818225,1738800639800,-500.0,0.00013698,2]
[351818227,1738800639809,-500.0,0.00013698,2]
[351818228,1738800639819,-1057.63,0.00013698,2]
[351818229,1738800639829,-230.83926229,0.00013698,2]
[351818230,1738800639841,-226.42980137,0.00013698,2]
[351818231,1738800639852,-521.62,0.00013698,2]
[351818232,1738800639862,-522.87038383,0.00013698,2]
[351818233,1738800639871,-500.0,0.00013698,2]
[351818234,1738800639883,-680.95,0.00013698,2]
[351818235,1738800639893,-500.0,0.00013698,2]
[351818236,1738800639902,-1312.89,0.00013698,2]
[351818237,1738800639913,-500.0,0.00013698,2]
[351818238,1738800639922,-547.12,0.00013698,2]
[351818240,1738800639932,-393.0,0.00013698,2]
[351818242,1738800639942,-500.0,0.00013698,2]
[351818244,1738800639952,-500.0,0.00013698,2]
[351818246,1738800639961,-281.53772769,0.00013698,2]
[351818248,1738800639971,-500.0,0.00013698,2]
[351818250,1738800639981,-500.0,0.00013698,2]
[351818252,1738800639992,-500.0,0.00013698,2]
[351818254,1738800640001,-676.12,0.00013698,2]
[351818256,1738800640012,-500.0,0.00013698,2]
[351818258,1738800640021,-501.51698432,0.00013698,2]
[351818260,1738800640031,-654.64,0.00013698,2]
[351818262,1738800640041,-500.0,0.00013698,2]
[351818264,1738800640051,-779.68,0.00013698,2]
[351818266,1738800640061,-500.0,0.00013698,2]
[351818268,1738800640071,-500.0,0.00013698,2]
[351818270,1738800640081,-500.0,0.00013698,2]
[351818272,1738800640091,-505.66110072,0.00013698,2]
[351818274,1738800640101,-564.2755885,0.00013698,2]
[351818275,1738800640110,-500.0,0.00013698,2]
[351818278,1738800640120,-1109.39,0.00013698,2]
[351818279,1738800640132,-500.0,0.00013698,2]
[351818281,1738800640142,-500.0,0.00013698,2]
[351818283,1738800640151,-500.0,0.00013698,2]
[351818285,1738800640161,-500.0,0.00013698,2]
[351818288,1738800640171,-500.0,0.00013698,2]
[351818289,1738800640180,-500.0,0.00013698,2]
[351818291,1738800640190,-278.84389108,0.00013698,2]
[351818293,1738800640200,-500.0,0.00013698,2]
[351818295,1738800640211,-624.6,0.00013698,2]
[351818297,1738800640221,-500.0,0.00013698,2]
[351818299,1738800640231,-500.0,0.00013698,2]
[351818301,1738800640241,-500.0,0.00013698,2]
[351818303,1738800640251,-500.0,0.00013698,2]
[351818305,1738800640261,-500.0,0.00013698,2]
[351818307,1738800640271,-658.65,0.00013698,2]
[351818309,1738800640280,-885.54,0.00013698,2]
[351818311,1738800640290,-500.0,0.00013698,2]
[351818313,1738800640299,-500.0,0.00013698,2]
[351818315,1738800640310,-928.77,0.00013698,2]
[351818318,1738800640320,-500.0,0.00013698,2]
[351818321,1738800640331,-500.0,0.00013698,2]
[351818323,1738800640340,-500.0,0.00013698,2]
[351818325,1738800640350,-500.0,0.00013698,2]
[351818327,1738800640360,-500.0,0.00013698,2]
[351818329,1738800640369,-500.0,0.00013698,2]
[351818331,1738800640380,-500.0,0.00013698,2]
[351818333,1738800640389,-500.0,0.00013698,2]
[351818335,1738800640399,-500.0,0.00013698,2]
[351818337,1738800640409,-500.0,0.00013698,2]
[351818339,1738800640419,-500.0,0.00013698,2]
[351818341,1738800640429,-500.0,0.00013698,2]
[351818343,1738800640438,-526.06,0.00013698,2]
[351818345,1738800640447,-500.0,0.00013698,2]
[351818347,1738800640457,-500.0,0.00013698,2]
[351818349,1738800640466,-500.0,0.00013698,2]
[351818351,1738800640475,-500.0,0.00013698,2]
[351818353,1738800640484,-500.0,0.00013698,2]
[351818355,1738800640494,-500.0,0.00013698,2]
[351818357,1738800640504,-736.57,0.00013698,2]
[351818359,1738800640514,-500.0,0.00013698,2]
[351818361,1738800640523,-500.0,0.00013698,2]
[351818363,1738800640533,-500.0,0.00013698,2]
[351818365,1738800640542,-1704.64,0.00013698,2]
[351818367,1738800640551,-500.0,0.00013698,2]
[351818369,1738800640561,-500.0,0.00013698,2]
[351818371,1738800640570,-500.0,0.00013698,2]
[351818373,1738800640579,-500.0,0.00013698,2]
[351818375,1738800640589,-2644.5,0.00013698,2]
[351818377,1738800640598,-352.54752496,0.00013698,2]
[351818379,1738800640608,-500.0,0.00013698,2]
[351818381,1738800640617,-500.0,0.00013698,2]
[351818384,1738800640629,-500.0,0.00013698,2]
[351818386,1738800640638,-613.14,0.00013698,2]
[351818388,1738800640648,-500.0,0.00013698,2]
[351818390,1738800640657,-500.0,0.00013698,2]
[351818392,1738800640667,-519.1702499,0.00013698,2]
[351818394,1738800640677,-1246.72,0.00013698,2]
[351818396,1738800640687,-500.0,0.00013698,2]
[351818398,1738800640696,-500.0,0.00013698,2]
[351818400,1738800640705,-500.0,0.00013698,2]
[351818402,1738800640715,-500.0,0.00013698,2]
[351818404,1738800640725,-505.1433936,0.00013698,2]
[351818406,1738800640735,-2406.45,0.00013698,2]
[351818408,1738800640745,-500.0,0.00013698,2]
[351818410,1738800640757,-500.0,0.00013698,2]
[351818412,1738800640767,-1022.7,0.00013698,2]
[351818414,1738800640777,-504.31827618,0.00013698,2]
[351818416,1738800640787,-500.0,0.00013698,2]
[351818418,1738800640797,-500.0,0.00013698,2]
[351818420,1738800640807,-500.0,0.00013698,2]
[351818422,1738800640817,-500.0,0.00013698,2]
[351818424,1738800640828,-500.0,0.00013698,2]